fUSD/lending_fUSD_20241112
["ID","MTS","AMOUNT","RATE_DAILY","PERIOD"]
[342068343,1731399037353,-500.0,0.00014999,2]
[342068344,1731399037365,-500.0,0.00014999,2]
[342068345,1731399037374,-500.0,0.00014999,2]
[342068346,1731399037383,-500.0,0.00014999,2]
[342068347,1731399037391,-500.0,0.00014999,2]
[342068348,1731399037401,-442.14944377,0.00014999,2]
[342068349,1731399037410,-500.0,0.00014999,2]
[342068350,1731399037419,-500.0,0.00014999,2]
[342068351,1731399037428,-500.0,0.00014999,2]
[342068352,1731399037437,-500.0,0.00014999,2]
[342068353,1731399037447,-500.0,0.00014999,2]
[342068354,1731399037457,-500.0,0.00014999,2]
[342068355,1731399037466,-591.95252408,0.00014999,2]
[342068356,1731399037475,-241.99160773,0.00014999,2]
[342068357,1731399037484,-500.0,0.00014999,2]
[342068358,1731399037494,-500.0,0.00014999,2]
[342068359,1731399037503,-500.0,0.00014999,2]
[342068360,1731399037512,-500.0,0.00014999,2]
[342068361,1731399037521,-500.0,0.00014999,2]
[342068362,1731399037530,-276.22269002,0.00014999,2]
[342068363,1731399037539,-500.0,0.00014999,2]
[342068364,1731399037548,-500.0,0.00014999,2]
[342068365,1731399037557,-500.0,0.00014999,2]
[342068366,1731399037567,-500.0,0.00014999,2]
[342068367,1731399037576,-500.0,0.00014999,2]
[342068368,1731399037585,-500.0,0.00014999,2]
[342068369,1731399037594,-500.0,0.00014999,2]
[342068370,1731399037603,-500.0,0.00014999,2]
[342068371,1731399037615,-500.0,0.00014999,2]
[342068372,1731399037624,-500.0,0.00014999,2]
[342068373,1731399037634,-516.34283401,0.00014999,2]
[342068374,1731399037643,-500.0,0.00014999,2]
[342068375,1731399037652,-476.73551932,0.00014999,2]
[342068376,1731399037661,-500.0,0.00014999,2]
[342068377,1731399037671,-500.0,0.00014999,2]
[342068378,1731399037683,-500.0,0.00014999,2]
[342068379,1731399037692,-500.0,0.00014999,2]
[342068380,1731399037700,-500.0,0.00014999,2]
[342068381,1731399037710,-500.0,0.00014999,2]
[342068382,1731399037719,-272.29711038,0.00014999,2]
[342068383,1731399037729,-500.0,0.00014999,2]
[342068384,1731399037737,-500.0,0.00014999,2]
[342068385,1731399037746,-502.56787771,0.00014999,2]
[342068386,1731399037757,-503.24478178,0.00014999,2]
[342068387,1731399037767,-500.0,0.00014999,2]
[342068388,1731399037776,-507.03730265,0.00014999,2]
[342068389,1731399037785,-30000.0,0.00015,2]
[342068390,1731399037793,-891163.0544323,0.00015,2]
[342068391,1731399037802,-9222.43951876,0.00015,2]
[342068392,1731399037812,-5549429.04393207,0.00015,2]
[342068393,1731399037860,-1644.02115673,0.00015,2]
[342068394,1731399037877,-17814.2,0.00015,2]
[342068397,1731399038549,-535.524,0.00013718,2]
[342068398,1731399038562,-555.476,0.00013718,2]
[342068399,1731399038571,-253.29106468,0.000149,2]
[342068400,1731399038580,-500.0,0.00014998,2]
[342068401,1731399038589,-500.0,0.00014999,2]
[342068402,1731399038598,-500.0,0.00014999,2]
[342068403,1731399038608,-2050.43072956,0.00015,2]
[342068404,1731399038620,-14518.13691578,0.00015,2]
[342068405,1731399038657,-2815.732395,0.00015,2]
[342068406,1731399038676,-1272.2175432,0.00015,2]
[342068407,1731399038713,-1520.80246369,0.00015,2]
[342068408,1731399038722,-1834.95080446,0.00015,2]
[342068409,1731399038733,-4007.2851614,0.00015,2]
[342068410,1731399038744,-2648.87173221,0.00015,2]
[342068411,1731399038757,-2334.49523805,0.00015,2]
[342068412,1731399038768,-7361.04401403,0.00015,2]
[342068438,1731399040419,-48321.55263138,0.00015,2]
[342068439,1731399040432,-1624.36,0.00015,2]
[342068440,1731399040476,-307.425015,0.00015,2]
[342068441,1731399040487,-7016.93468411,0.00015,2]
[342068442,1731399040499,-2053.45948438,0.00015,2]
[342068443,1731399040510,-1214.11499995,0.00015,2]
[342068444,1731399040531,-1701.51992776,0.00015,2]
[342068445,1731399040600,-4553.1882,0.00015,2]
[342068446,1731399040643,-1781.5,0.00015,2]
[342068466,1731399043302,-155.71476803,0.00014999,2]
[342068469,1731399043311,-1734.22559055,0.00014999,2]
[342068472,1731399043321,-3094.19989604,0.00015,2]
[342068485,1731399043448,-2264.03925,0.00015,2]
[342068486,1731399043459,-2674.5,0.00015,2]
[342068487,1731399043475,-295.3860133,0.00015,2]
[342068490,1731399043626,-27724.29374825,0.00015,2]
[342068491,1731399043637,-980.83449939,0.00015,2]
[342068492,1731399043685,-5858.36189441,0.00015,2]
[342068493,1731399043697,-35949.09046577,0.00015,2]
[342068494,1731399043708,-4242.05810906,0.00015,2]
[342068495,1731399043720,-6163.39120205,0.00015,2]
[342068750,1731399046290,-2061.0528,0.00013398,2]
[342068752,1731399046300,-2103.12845192,0.00015,2]
[342068754,1731399046312,-34306.1414084,0.00015,2]
[342068758,1731399046346,-1179.040516,0.00015,2]
[342068761,1731399046360,-2929.58544688,0.00015,2]
[342068775,1731399046510,-5408.06477473,0.00015,2]
[342068778,1731399046523,-1659.99641356,0.00015,2]
[342068780,1731399046536,-401.84999987,0.00015,2]
[342068784,1731399046572,-650.39129664,0.00015,2]
[342068790,1731399046626,-391.01633,0.00015,2]
[342068793,1731399046639,-284008.82345995,0.00015,2]
[342068996,1731399348723,209.0,0.00027,60]
[342069002,1731399656729,221.83,0.00027,60]
[342069003,1731399671253,221.83,0.00027,60]
[342069005,1731399723375,1317.81,0.00011691,2]
[342069024,1731399873837,1000.0,0.00027,60]
[342069025,1731399924552,1000.0,0.00027,60]
[342069026,1731399931924,220.0,0.00027,60]
[342069027,1731399988841,1000.0,0.00027,60]
[342069032,1731400035085,1000.0,0.00027,60]
[342069033,1731400047071,1000.0,0.00027,60]
[342069054,1731400143461,128108.30220036,0.00027,60]
[342069060,1731400225159,1000.0,0.00027,60]
[342069072,1731400231484,-1533.12546743,0.00012517,2]
[342069073,1731400231546,-481.85917357,0.00012517,2]
[342069074,1731400231556,-768.13200543,0.0001268,2]
[342069075,1731400231658,-5981.54940243,0.0001268,2]
[342069076,1731400231669,-300.0,0.00012735,2]
[342069077,1731400231680,-519.74453764,0.00012736,2]
[342069078,1731400231692,-3216.20546236,0.00012736,2]
[342069079,1731400231702,-500.0,0.00012786,2]
[342069080,1731400231712,-150.0,0.00012998,2]
[342069081,1731400231721,-187.14651132,0.00012999,2]
[342069082,1731400231731,-500.0,0.00012999,2]
[342069083,1731400231741,-346.87917107,0.00012999,2]
[342069084,1731400231752,-500.0,0.00012999,2]
[342069085,1731400231765,-500.0,0.00012999,2]
[342069086,1731400231779,-500.0,0.00012999,2]
[342069087,1731400231789,-500.0,0.00012999,2]
[342069088,1731400231799,-500.0,0.00012999,2]
[342069089,1731400231811,-479.9987029,0.00012999,2]
[342069090,1731400231821,-190.9144284,0.00012999,2]
[342069091,1731400231831,-38616.13467722,0.00013,2]
[342069092,1731400231843,-1518.93593884,0.00013,2]
[342069093,1731400231872,-595.5625,0.00013,2]
[342069094,1731400231884,-2157.91822238,0.00013,2]
[342069095,1731400231906,-780.75517443,0.00013,2]
[342069096,1731400231919,-987.63097325,0.00013,2]
[342069098,1731400231943,-1373.08667666,0.00013,2]
[342069100,1731400231956,-426.32802667,0.00013,2]
[342069102,1731400231968,-450.57754012,0.00013,2]
[342069104,1731400231981,-58279.40918433,0.00013,2]
[342069143,1731400233563,1000.0,0.00027,60]
[342069156,1731400237546,-20089.10911534,0.00013,2]
[342069157,1731400237559,-3649.93045815,0.00013,2]
[342069158,1731400237572,-1125.36897764,0.00013,2]
[342069159,1731400237584,-1300.82027097,0.00013,2]
[342069160,1731400237596,-9990.6751042,0.00013,2]
[342069161,1731400237609,-685.85215512,0.00013,2]
[342069162,1731400237620,-266.496,0.00013,2]
[342069163,1731400237632,-31322.46,0.00013,2]
[342069164,1731400237675,-8030.49909796,0.00013,2]
[342069165,1731400237688,-4738.93835406,0.00013,2]
[342069166,1731400237700,-9701.63556486,0.00013,2]
[342069167,1731400237711,-999.30451228,0.00013,2]
[342069168,1731400237723,-4035.37105092,0.00013,2]
[342069169,1731400237735,-27207.97618637,0.00013,2]
[342069170,1731400237746,-394.95774352,0.00013,2]
[342069171,1731400238007,-1138597.01909792,0.00013,2]
[342069257,1731400239457,-3057.05148721,0.00013,2]
[342069263,1731400239515,-977.26,0.00013,2]
[342069264,1731400239528,-925.60768505,0.00013,2]
[342069265,1731400239542,-11389.90741487,0.00013,2]
[342069266,1731400239931,-801.0,0.00013,2]
[342069277,1731400242472,-754.95,0.000129,2]
[342069279,1731400242481,-13467.65220908,0.00013,2]
[342069286,1731400242533,-3428.52040609,0.00013,2]
[342069288,1731400242546,-7311.07302584,0.00013,2]
[342069290,1731400242557,-4715.72083509,0.00013,2]
[342069292,1731400242568,-4071.27219845,0.00013,2]
[342069293,1731400242579,-3200.96531707,0.00013,2]
[342069295,1731400242590,-12153.1842,0.00013,2]
[342069297,1731400242601,-2000.0,0.00013,2]
[342069301,1731400242648,-50153.50804096,0.00013,2]
[342069303,1731400242659,-75117.99924,0.00013,2]
[342069310,1731400242708,-3355.20552506,0.00013,2]
[342069312,1731400242719,-4173.16867624,0.00013,2]
[342069314,1731400242730,-3505.23010321,0.00013,2]
[342069316,1731400242740,-849.44065291,0.00013,2]
[342069320,1731400242767,-658.62639318,0.00013,2]
[342069328,1731400242826,-11110.0,0.00013,2]
[342069330,1731400242837,-14968.87631,0.00013,2]
[342069336,1731400242883,-655.06924,0.00013,2]
[342069643,1731400245586,-17770.3,0.00013,2]
[342069661,1731400245760,-6339.8005,0.00013,2]
[342069662,1731400245773,-1365.25613266,0.00013,2]
[342069663,1731400245789,-1184.049998,0.00013,2]
[342069664,1731400245801,-476.94382065,0.00013,2]
[342069665,1731400245820,-1558.51021048,0.00013,2]
[342069666,1731400245832,-15000.15628119,0.00013,2]
[342069667,1731400245844,-2848.71463,0.00013,2]
[342069668,1731400245856,-6736.6473,0.00013,2]
[342069669,1731400245868,-2042.3655,0.00013,2]
[342069678,1731400517183,1299.53,0.0001079,2]
[342069681,1731400603504,161.08,0.00012438,2]
[342069682,1731400629729,2842.2,0.00012164,2]
[342069683,1731400630671,151.14308079,0.00012103,2]
[342069684,1731400631966,200.0,0.00012164,2]
[342069685,1731400663804,404.2,0.00012068,2]
[342069686,1731400713885,608.19,0.00012036,2]
[342069687,1731400717725,1000.0,0.00012064,2]
[342069688,1731400887968,250.0,0.00012085,2]
[342069689,1731400920886,1021.04,0.0001206,2]
[342069690,1731400940725,-11190.18,0.00012539,2]
[342069691,1731400940750,-5025.59,0.00012574,2]
[342069692,1731401028731,21078.64,0.00012239,2]
[342069694,1731401035393,226.37,0.0001234,2]
[342069695,1731401045387,169.61,0.00012378,2]
[342069700,1731401224288,1088.0,0.000127,2]
[342069701,1731401255369,1255.98,0.0001011,2]
[342069702,1731401255577,1255.98,0.00012374,2]
[342069703,1731401291172,161.08,0.00012002,2]
[342069706,1731401351281,222.0,0.00027,60]
[342069708,1731401421013,304.09,0.00011984,2]
[342069709,1731401423036,1000.0,0.00011984,2]
[342069714,1731401431736,-758.282,0.0001278,2]
[342069715,1731401431747,-168.21,0.00012781,2]
[342069716,1731401431756,-250.0,0.00012787,2]
[342069717,1731401431766,-2061.0528,0.000128,2]
[342069718,1731401431775,-2032.4375698,0.000128,2]
[342069719,1731401431783,-2361.0745,0.000128,2]
[342069720,1731401431792,-1338.741712,0.000128,2]
[342069721,1731401431802,-426.22825879,0.0001281,2]
[342069722,1731401431811,-150.0,0.00012849,2]
[342069723,1731401431820,-300.0,0.00012869,2]
[342069724,1731401431830,-697.4447313,0.0001287,2]
[342069725,1731401434434,250.0,0.00012169,2]
[342069726,1731401434999,-2562.41145777,0.0001287,2]
[342069727,1731401435008,-169.2589863,0.0001287,2]
[342069728,1731401435017,-314.16542785,0.00012873,2]
[342069729,1731401435026,-255.0,0.00012873,2]
[342069730,1731401435035,-314.16542778,0.00012876,2]
[342069731,1731401435044,-299.99,0.00012876,2]
[342069732,1731401435053,-4399.18,0.00012876,2]
[342069733,1731401435062,-314.16542778,0.00012879,2]
[342069734,1731401435071,-314.16542778,0.00012882,2]
[342069735,1731401435080,-314.16542778,0.00012885,2]
[342069736,1731401435090,-314.16542778,0.00012888,2]
[342069737,1731401435099,-2376.27128757,0.0001289,2]
[342069738,1731401435107,-314.16542778,0.00012891,2]
[342069739,1731401435115,-314.16542778,0.00012894,2]
[342069740,1731401435124,-768.5152,0.00012897,2]
[342069741,1731401435134,-1016.0335,0.00012897,2]
[342069742,1731401435143,-314.16542778,0.00012897,2]
[342069743,1731401435152,-2397.36535582,0.00012899,2]
[342069744,1731401435160,-150.0,0.00012899,2]
[342069745,1731401435170,-1480.955,0.000129,2]
[342069746,1731401435179,-19450.5194,0.000129,2]
[342069747,1731401435191,-10904.804,0.000129,2]
[342069748,1731401435200,-13226.873,0.000129,2]
[342069749,1731401435210,-79126.5344,0.000129,2]
[342069750,1731401435219,-2387.61,0.000129,2]
[342069751,1731401435228,-314.16542778,0.000129,2]
[342069752,1731401435237,-2850.54265248,0.000129,2]
[342069753,1731401435246,-500.0,0.00012973,2]
[342069754,1731401435255,-399.42687174,0.00012973,2]
[342069755,1731401435264,-204.6438118,0.00012973,2]
[342069756,1731401435275,-163.7110762,0.0001299,2]
[342069757,1731401435284,-35231.9785912,0.00012997,2]
[342069758,1731401435300,-661.95040735,0.00012997,2]
[342069759,1731401435314,-657.4833942,0.00012997,2]
[342069760,1731401435326,-1794.848539,0.00012997,2]
[342069761,1731401435336,-6782.66465329,0.00012997,2]
[342069762,1731401435347,-32763.93691316,0.00012997,2]
[342069763,1731401435357,-160.59439503,0.00012999,2]
[342069764,1731401435366,-500.0,0.00012999,2]
[342069765,1731401435375,-462.73263131,0.00012999,2]
[342069766,1731401435385,-600.0,0.00012999,2]
[342069767,1731401435395,-38118.64280355,0.00013,2]
[342069768,1731401435404,-51706.24446084,0.00013,2]
[342069769,1731401435414,-155529.47695894,0.00013,2]
[342069771,1731401435426,-11827.45132302,0.00013,2]
[342069774,1731401435439,-901.74045319,0.00013,2]
[342069785,1731401437846,-3745.867961,0.00013,2]
[342069786,1731401437857,-3692.2557,0.00013,2]
[342069787,1731401437868,-178078.59200716,0.00013,2]
[342069788,1731401437878,-267.027,0.00013,2]
[342069789,1731401437889,-2105.01921531,0.00013,2]
[342069790,1731401437899,-6814.70617871,0.00013,2]
[342069791,1731401437910,-5114.30124073,0.00013,2]
[342069792,1731401437921,-3608.71711272,0.00013,2]
[342069793,1731401437937,-2756.94097535,0.00013,2]
[342069794,1731401437950,-33882.64308989,0.00013,2]
[342069795,1731401437961,-26999.48982,0.00013,2]
[342069919,1731401439661,-6301.9999045,0.00013,2]
[342069920,1731401439673,-80569.7502684,0.00013,2]
[342069921,1731401439720,-450.85999996,0.00013,2]
[342069922,1731401439731,-15887.87644215,0.00013,2]
[342069923,1731401439743,-3936.1238695,0.00013,2]
[342069924,1731401439754,-9804.61498961,0.00013,2]
[342069925,1731401439765,-1497.74984192,0.00013,2]
[342069926,1731401439775,-352.49972328,0.00013,2]
[342069927,1731401439786,-275.7755006,0.00013,2]
[342069928,1731401439797,-948.11694171,0.00013,2]
[342069929,1731401439808,-400.07483383,0.00013,2]
[342069930,1731401439819,-428.79321821,0.00013,2]
[342069931,1731401439830,-4555.12487777,0.00013,2]
[342069932,1731401439841,-1346.25405881,0.00013,2]
[342069935,1731401442986,-891.42674,0.00013,2]
[342069943,1731401443043,-5143.81582226,0.00013,2]
[342069946,1731401443054,-3388.51735522,0.00013,2]
[342069949,1731401443065,-4260.14562152,0.00013,2]
[342069952,1731401443076,-2556.60063648,0.00013,2]
[342069968,1731401443212,-2456.76353714,0.00013,2]
[342069971,1731401443223,-12266.9289,0.00013,2]
[342069973,1731401443235,-8874.91389764,0.00013,2]
[342069978,1731401443270,-12141.54954937,0.00013,2]
[342069980,1731401443281,-26380.8,0.00013,2]
[342069982,1731401443291,-83244.80218629,0.00013,2]
[342069986,1731401443331,-11013.0744,0.00013,2]
[342069988,1731401443342,-192902.25430388,0.00013,2]
[342069991,1731401443353,-5450.40060044,0.00013,2]
[342069993,1731401443364,-4455.7938,0.00013,2]
[342069997,1731401443393,-4778.25809115,0.00013,2]
[342070142,1731401445620,-405.96000009,0.00013,2]
[342070143,1731401445632,-327.6222845,0.00013,2]
[342070144,1731401445645,-6514.37357935,0.00013,2]
[342070145,1731401445656,-2049.4500002,0.00013,2]
[342070150,1731401445697,-467.0361201,0.00013,2]
[342070153,1731401445709,-424.20906379,0.00013,2]
[342070158,1731401445751,-4464.912,0.00013,2]
[342070160,1731401445762,-1698.39468889,0.00013,2]
[342070170,1731401445866,-25513.81487846,0.00013,2]
[342070171,1731401445924,-650.568,0.00013,2]
[342070172,1731401445936,-1523.69704967,0.00013,2]
[342070175,1731401447759,-2794.5,0.00013,2]
[342070176,1731401447823,584.21,0.00010959,2]
[342070177,1731401494932,754.95,0.000127,2]
[342070183,1731401587997,250.0,0.00012607,2]
[342070184,1731401598877,2027.84597,0.00024869,120]
[342070187,1731401603568,500.0,0.000266,120]
[342070188,1731401610061,169.7,0.00012607,2]
[342070193,1731401841556,217.55,0.00012329,2]
[342070194,1731401856654,2500.0,0.000127,2]
[342070198,1731401929332,150.0,0.00027,60]
[342070199,1731401936144,500.0,0.00027,60]
[342070200,1731401975036,1138.7,0.00010198,2]
[342070201,1731401975238,1138.7,0.00012462,2]
[342070202,1731401995212,161.08,0.00012116,2]
[342070203,1731402100261,210.0,0.00027,60]
[342070204,1731402104783,250.0,0.00012364,2]
[342070205,1731402111213,1000.0,0.00012534,2]
[342070208,1731402133182,210.0,0.00027,60]
[342070209,1731402177336,200.0,0.000125,2]
[342070210,1731402203887,500.0,0.000266,120]
[342070211,1731402257300,2689.8522,0.000127,2]
[342070212,1731402268402,2000.0,0.00012353,2]
[342070213,1731402313601,800.0,0.00012193,2]
[342070214,1731402321607,-152.04,0.00012716,2]
[342070215,1731402321633,-1725.34740075,0.0001277,2]
[342070216,1731402321654,-3920.51909113,0.0001278,2]
[342070217,1731402321677,-1725.34740074,0.00012784,2]
[342070218,1731402321699,-300.0,0.00012789,2]
[342070219,1731402321720,-17542.4703204,0.0001279,2]
[342070220,1731402321744,-1725.34740074,0.00012799,2]
[342070221,1731402321767,-1428.369,0.00012799,2]
[342070222,1731402321791,-150.0,0.00012799,2]
[342070223,1731402321811,-12498.2602,0.000128,2]
[342070224,1731402321833,-6005.5347,0.000128,2]
[342070225,1731402321854,-217651.9094,0.000128,2]
[342070226,1731402321876,-1725.34740074,0.00012813,2]
[342070227,1731402321903,-1725.34740074,0.00012828,2]
[342070228,1731402321926,-1725.34740074,0.00012842,2]
[342070229,1731402321947,-1725.34740074,0.00012857,2]
[342070230,1731402321969,-3000.0,0.0001287,2]
[342070231,1731402321991,-3000.0,0.0001287,2]
[342070232,1731402322016,-1725.34740074,0.00012871,2]
[342070233,1731402322043,-1725.34740074,0.00012886,2]
[342070234,1731402322068,-27969.09594112,0.00012886,2]
[342070235,1731402322089,-200.0,0.000129,2]
[342070236,1731402322110,-128739.1251,0.000129,2]
[342070237,1731402322135,-1725.34740074,0.000129,2]
[342070238,1731402322155,-28540.84374942,0.000129,2]
[342070239,1731402322176,-496.03508401,0.00012973,2]
[342070240,1731402322196,-366.01012499,0.00012973,2]
[342070241,1731402322223,-500.0,0.00012973,2]
[342070242,1731402322243,-500.0,0.00012973,2]
[342070243,1731402322266,-500.0,0.00012999,2]
[342070244,1731402322288,-218.45374042,0.00012999,2]
[342070245,1731402322311,-505.38048423,0.00012999,2]
[342070246,1731402322333,-348.39519646,0.00012999,2]
[342070247,1731402322355,-2903614.08286041,0.00013,2]
[342070248,1731402323423,200.0,0.000127,5]
[342070263,1731402631891,-150.0,0.00012899,2]
[342070264,1731402631901,-200.0,0.000129,5]
[342070265,1731402631911,-200.0,0.000129,2]
[342070266,1731402631920,-3041.02215548,0.000129,2]
[342070267,1731402631999,-3304.94313,0.000129,2]
[342070268,1731402632060,-454.2621,0.000129,2]
[342070269,1731402632071,-2553.86285609,0.000129,2]
[342070270,1731402632120,-6537.44976178,0.000129,2]
[342070271,1731402632135,-6938.90567764,0.000129,2]
[342070272,1731402632146,-17868.93,0.000129,2]
[342070273,1731402632157,-962.09870141,0.000129,2]
[342070274,1731402632179,-6475.96562991,0.000129,2]
[342070275,1731402632190,-2448.65676309,0.000129,2]
[342070276,1731402632241,-5982.08381709,0.000129,2]
[342070277,1731402632302,-161083.72880751,0.000129,2]
[342070278,1731402632312,-61761.0,0.000129,2]
[342070279,1731402632323,-500.0,0.00012973,2]
[342070280,1731402632333,-64388.11044328,0.00013,2]
[342070281,1731402632345,-969.80874212,0.00013,2]
[342070282,1731402632357,-1147.40724241,0.00013,2]
[342070283,1731402632368,-4490.7999998,0.00013,2]
[342070284,1731402632386,-887.71683,0.00013,2]
[342070285,1731402632397,-20923.88878557,0.00013,2]
[342070286,1731402632409,-318433.34796712,0.00013,2]
[342070292,1731402637939,-255.10853248,0.00013,2]
[342070293,1731402637999,-641.33532109,0.00013,2]
[342070294,1731402638061,-803.78852038,0.00013,2]
[342070295,1731402638121,-4154.88950854,0.00013,2]
[342070296,1731402638133,-1239.75020202,0.00013,2]
[342070297,1731402638183,-7011.78349929,0.00013,2]
[342070298,1731402638194,-5598.57294108,0.00013,2]
[342070299,1731402638206,-4999.15927313,0.00013,2]
[342070300,1731402638217,-5063.23908324,0.00013,2]
[342070301,1731402638228,-1925.42589866,0.00013,2]
[342070302,1731402638239,-951.20590677,0.00013,2]
[342070303,1731402638250,-1561.31629799,0.00013,2]
[342070304,1731402638261,-2798.33320808,0.00013,2]
[342070305,1731402638272,-8754.64352791,0.00013,2]
[342070306,1731402638283,-407.9207718,0.00013,2]
[342070307,1731402638294,-527.25794858,0.00013,2]
[342070308,1731402638310,-46743.34510816,0.00013,2]
[342070309,1731402638329,-686.5,0.00013,2]
[342070310,1731402638340,-2679.57,0.00013,2]
[342070318,1731402639841,-406.27,0.00013,2]
[342070319,1731402639904,-3719.0851782,0.00013,2]
[342070320,1731402641158,-324.12376016,0.00013,2]
[342070321,1731402641218,-887.21,0.00013,2]
[342070322,1731402641774,-0.00099985,0.00013,2]
[342070352,1731402642935,-656.41943482,0.00013,2]
[342070355,1731402642947,-636.99258945,0.00013,2]
[342070374,1731402643160,-2692.23958359,0.00013,2]
[342070375,1731402643172,-22281.75171167,0.00013,2]
[342070376,1731402643222,-2235.81656765,0.00013,2]
[342070378,1731402643234,-1673.71728395,0.00013,2]
[342070380,1731402643245,-3018.40000542,0.00013,2]
[342070382,1731402643258,-1491.37943183,0.00013,2]
[342070383,1731402643269,-1134.53822346,0.00013,2]
[342070384,1731402643280,-912.87413803,0.00013,2]
[342070385,1731402643291,-5979.26329316,0.00013,2]
[342070386,1731402643340,-654.18716231,0.00013,2]
[342070387,1731402643355,-644.34640775,0.00013,2]
[342070388,1731402643366,-621.64932338,0.00013,2]
[342070390,1731402643400,-1095.62965761,0.00013,2]
[342070443,1731402645825,-200.0,0.000129,2]
[342070445,1731402645835,-81880.77045932,0.00013,2]
[342070447,1731402645847,-39416.598549,0.00013,2]
[342070448,1731402645954,-324806.30156513,0.00013,2]
[342070449,1731402645966,-335.23446328,0.00013,2]
[342070450,1731402645978,-2349.7253906,0.00013,2]
[342070451,1731402645988,-5673.6040571,0.00013,2]
[342070452,1731402646000,-638.7123788,0.00013,2]
[342070453,1731402646018,-8845.8,0.00013,2]
[342070454,1731402646029,-1009.14060664,0.00013,2]
[342070455,1731402646040,-60043.72584198,0.00013,2]
[342070456,1731402646051,-514.86820932,0.00013,2]
[342070457,1731402646080,-985445.31359445,0.00013,2]
[342070458,1731402646092,-4091.5384735,0.00013,2]
[342070459,1731402646103,-3406.69557705,0.00013,2]
[342070460,1731402646115,-642.46593591,0.00013,2]
[342070461,1731402646200,-6066.11906209,0.00013,2]
[342070462,1731402646265,-692.24056027,0.00013,2]
[342070463,1731402646277,-2826.66429187,0.00013,2]
[342070464,1731402646289,-446.22,0.00013,2]
[342070465,1731402646302,-13424.96674024,0.00013,2]
[342070466,1731402646314,-4383.99395773,0.00013,2]
[342070467,1731402646326,-1390.5,0.00013,2]
[342070468,1731402646342,-2624.34675642,0.00013,2]
[342070469,1731402646354,-297.5916884,0.00013,2]
[342070470,1731402646366,-2951.45918413,0.00013,2]
[342070471,1731402646377,-2591.38221443,0.00013,2]
[342070472,1731402646390,-559.01722443,0.00013,2]
[342070473,1731402646448,-505.19173216,0.00013,2]
[342070474,1731402646459,-799.98954208,0.00013,2]
[342070475,1731402646471,-3561.33955989,0.00013,2]
[342070476,1731402646512,-1720.042391,0.00013,2]
[342070512,1731402716014,1045.15,0.00011135,2]
[342070513,1731402776055,1939.93,0.00012602,2]
[342070514,1731402801942,500.0,0.00025114,120]
[342070515,1731402818906,1000.0,0.00012551,2]
[342070516,1731402847802,-200.0,0.00013,5]
[342070520,1731402978039,880.51,0.00012609,2]
[342070521,1731403012954,152.04,0.00012634,2]
[342070522,1731403017369,29523.7141,0.000127,2]
[342070523,1731403021497,477.89,0.00012634,2]
[342070528,1731403067960,2177.68,0.00012585,2]
[342070535,1731403437929,1011.17,0.00010627,2]
[342070536,1731403531149,16851.13,0.00012789,21]
[342070537,1731403554449,350.0,0.000123,6]
[342070538,1731403572589,4566.43657147,0.00027,60]
[342070539,1731403587636,1000.0,0.00012493,2]
[342070540,1731403621737,103381.6537,0.0001268,2]
[342070582,1731403832049,-495.40631427,0.0001267,2]
[342070583,1731403832058,-156.30265932,0.00012676,2]
[342070584,1731403832068,-295.08489633,0.00012679,2]
[342070585,1731403832134,-4.91510367,0.00012679,2]
[342070586,1731403832143,-150.0,0.00012679,2]
[342070587,1731403832153,-2059.33489633,0.0001268,2]
[342070588,1731403832220,-799.27337008,0.0001268,2]